[Event "European Online Club-ch-C 2021"]
[Site "Online"]
[Date "2021.03.27"]
[Round "8.16"]
[White "Marn, Jan"]
[Black "Hracek, Zbynek"]
[Result "1/2-1/2"]
[ECO "A37"]
[WhiteElo "2346"]
[BlackElo "2565"]
[Annotator "ChessBase"]
[PlyCount "90"]
[EventDate "2021.03.27"]
[EventType "team-tourn"]
[EventCountry "NET"]
[SourceTitle "playchess.com"]
[Source "ChessBase"]
[SourceQuality "1"]
[TimeControl "900+5"]

1. Nf3 {[%emt 0:00:00]} c5 {[%emt 0:00:04]} 2. g3 {[%emt 0:00:05]} Nc6 {[%emt 0:00:01]} 3. Bg2 {[%emt 0:00:02]} g6 {[%emt 0:00:01]} 4. O-O {[%emt 0:00:21]} Bg7 {[%emt 0:00:02]} 5. c4 {[%emt 0:00:05]} e5 {[%emt 0:00:03]} 6. Nc3 {[%emt 0:00:06]} d6 {[%emt 0:00:02]} 7. a3 {[%emt 0:00:47]} Nge7 {[%emt 0:00:27]} 8. b4 {[%emt 0:00:22]} Be6 {[%emt 0:00:26]} 9. bxc5 {[%emt 0:00:27]} dxc5 {[%emt 0:00:00]} 10. Rb1 {[%emt 0:00:02]} b6 {[%emt 0:00:44]} 11. d3 {[%emt 0:00:08]} h6 {[%emt 0:00:09]} 12. e4 {[%emt 0:00:12]} O-O {[%emt 0:00:16]} 13. Nd5 {[%emt 0:00:14]} f5 {[%emt 0:00:34]} 14. Nxe7+ {[%emt 0:01:14]} Qxe7 {[%emt 0:01:08]} 15. exf5 {[%emt 0:00:03]} gxf5 {[%emt 0:00:10]} 16. Nh4 {[%emt 0:00:03]} Qe8 {[%emt 0:00:45]} 17. Bb2 {[%emt 0:02:03]} Rd8 {[%emt 0:00:05]} 18. Qe2 {[%emt 0:00:32]} e4 {[%emt 0:01:25]} 19. dxe4 {[%emt 0:00:55]} f4 {[%emt 0:01:08]} 20. e5 {[%emt 0:01:34]} Nd4 {[%emt 0:00:02]} 21. Bxd4 {[%emt 0:00:02]} Rxd4 {[%emt 0:00:00]} 22. Bd5 {[%emt 0:01:39]} Bxd5 {[%emt 0:00:24]} 23. cxd5 {[%emt 0:00:00]} fxg3 {[%emt 0:02:11]} 24. fxg3 {[%emt 0:00:45]} Rxf1+ {[%emt 0:00:03]} 25. Rxf1 {[%emt 0:00:01]} Qxe5 {[%emt 0:00:02]} 26. Rf8+ {[%emt 0:00:04]} Kh7 {[%emt 0:00:12]} 27. Qc2+ {[%emt 0:00:03]} Qe4 {[%emt 0:00:12]} 28. Qxe4+ {[%emt 0:00:14]} Rxe4 {[%emt 0:00:00]} 29. Rf7 {[%emt 0:00:01]} Kg8 {[%emt 0:00:17]} 30. Rxa7 {[%emt 0:00:03]} c4 {[%emt 0:02:47]} 31. Nf5 {[%emt 0:02:59]} Bd4+ {[%emt 0:00:02]} 32. Kf1 {[%emt 0:00:02]} c3 {[%emt 0:00:46]} 33. Nxd4 {[%emt 0:01:12]} Rxd4 {[%emt 0:00:00]} 34. Rc7 {[%emt 0:00:02]} Rxd5 {[%emt 0:00:04]} 35. Rxc3 {[%emt 0:00:01]} Rd2 {[%emt 0:00:01]} 36. Kg1 {[%emt 0:00:06]} Ra2 {[%emt 0:00:07]} 37. Rc6 {[%emt 0:00:21]} Kg7 {[%emt 0:00:03]} 38. Rc7+ {[%emt 0:00:02]} Kg6 {[%emt 0:00:16]} 39. Rc6+ {[%emt 0:00:04]} Kg7 {[%emt 0:00:02]} 40. Rxb6 {[%emt 0:00:05]} Rxa3 {[%emt 0:00:02]} 41. Kg2 {[%emt 0:00:01]} Ra2+ {[%emt 0:00:03]} 42. Kh3 {[%emt 0:00:02]} Rc2 {[%emt 0:00:02]} 43. g4 {[%emt 0:00:07]} Ra2 {[%emt 0:00:02]} 44. Kg3 {[%emt 0:00:02]} Rc2 {[%emt 0:00:04]} 45. Kh4 {[%emt 0:00:12]} Rxh2+ {[%emt 0:00:03]} 1/2-1/2

[Event "European Online Club-ch-C 2021"]
[Site "Online"]
[Date "2021.03.27"]
[Round "8.17"]
[White "Delgado Ramirez, Neuris"]
[Black "Babula, Vlastimil"]
[Result "1/2-1/2"]
[ECO "B56"]
[WhiteElo "2615"]
[BlackElo "2559"]
[Annotator "ChessBase"]
[PlyCount "76"]
[EventDate "2021.03.27"]
[EventType "team-tourn"]
[EventCountry "NET"]
[SourceTitle "playchess.com"]
[Source "ChessBase"]
[SourceQuality "1"]
[TimeControl "900+5"]

1. e4 {[%emt 0:00:00]} c5 {[%emt 0:00:05]} 2. Nf3 {[%emt 0:00:03]} d6 {[%emt 0:00:05]} 3. d4 {[%emt 0:00:17]} cxd4 {[%emt 0:00:03]} 4. Nxd4 {[%emt 0:00:02]} Nf6 {[%emt 0:00:02]} 5. Nc3 {[%emt 0:00:02]} e6 {[%emt 0:00:02]} 6. Nb3 {[%emt 0:00:04]} Nc6 {[%emt 0:00:15]} 7. g4 {[%emt 0:00:04]} h6 {[%emt 0:00:02]} 8. Be3 {[%emt 0:00:06]} d5 {[%emt 0:00:22]} 9. exd5 {[%emt 0:00:33]} exd5 {[%emt 0:00:09]} 10. h3 {[%emt 0:00:06]} Bb4 {[%emt 0:00:48]} 11. Qd3 {[%emt 0:02:11]} Be6 {[%emt 0:03:37]} 12. O-O-O {[%emt 0:00:26]} Rc8 {[%emt 0:00:23]} 13. f4 {[%emt 0:00:22]} O-O {[%emt 0:00:24]} 14. Bg2 {[%emt 0:00:44]} Bxc3 {[%emt 0:01:55]} 15. bxc3 {[%emt 0:01:59]} d4 {[%emt 0:00:06]} 16. Bxd4 {[%emt 0:02:01]} Nxd4 {[%emt 0:01:13]} 17. Qxd4 {[%emt 0:00:30]} Qc7 {[%emt 0:00:09]} 18. Qe5 {[%emt 0:00:22]} Qxe5 {[%emt 0:01:02]} 19. fxe5 {[%emt 0:00:03]} Nd7 {[%emt 0:00:02]} 20. Nd4 {[%emt 0:02:50]} Bxa2 {[%emt 0:01:00]} 21. Kb2 {[%emt 0:00:52]} Bc4 {[%emt 0:00:05]} 22. Nf5 {[%emt 0:00:06]} Rc7 {[%emt 0:00:04]} 23. Rhe1 {[%emt 0:00:04]} Nc5 {[%emt 0:00:24]} 24. Re3 {[%emt 0:00:18]} Be6 {[%emt 0:00:20]} 25. Ka3 {[%emt 0:00:25]} b5 {[%emt 0:00:30]} 26. Nd6 {[%emt 0:00:03]} a6 {[%emt 0:00:28]} 27. Bd5 {[%emt 0:00:25]} Rb8 {[%emt 0:00:34]} 28. Bxe6 {[%emt 0:00:09]} Nxe6 {[%emt 0:00:04]} 29. Kb4 {[%emt 0:00:58]} a5+ {[%emt 0:00:38]} 30. Ka3 {[%emt 0:01:04]} b4+ {[%emt 0:00:50]} 31. cxb4 {[%emt 0:00:04]} Rxb4 {[%emt 0:00:02]} 32. c4 {[%emt 0:00:09]} Nc5 {[%emt 0:00:19]} 33. Rd5 {[%emt 0:00:02]} Rc6 {[%emt 0:01:04]} 34. Ka2 {[%emt 0:00:17]} a4 {[%emt 0:00:09]} 35. Ka3 {[%emt 0:00:04]} Rb1 {[%emt 0:00:07]} 36. Ka2 {[%emt 0:00:02]} Rb4 {[%emt 0:00:04]} 37. Ka3 {[%emt 0:00:02]} Rb1 {[%emt 0:00:02]} 38. Ka2 {[%emt 0:00:01]} Rb4 {[%emt 0:00:02]} 1/2-1/2

[Event "European Online Club-ch-C 2021"]
[Site "Online"]
[Date "2021.03.27"]
[Round "8.18"]
[White "Grigorian, Spartak"]
[Black "Martinez Alcantara, Jose Eduardo"]
[Result "1-0"]
[ECO "E21"]
[WhiteElo "2458"]
[BlackElo "2620"]
[Annotator "ChessBase"]
[PlyCount "75"]
[EventDate "2021.03.27"]
[EventType "team-tourn"]
[EventCountry "NET"]
[SourceTitle "playchess.com"]
[Source "ChessBase"]
[SourceQuality "1"]
[TimeControl "900+5"]

1. d4 {[%emt 0:00:00]} Nf6 {[%emt 0:00:04]} 2. c4 {[%emt 0:00:02]} e6 {[%emt 0:00:02]} 3. Nc3 {[%emt 0:00:04]} Bb4 {[%emt 0:00:02]} 4. e3 {[%emt 0:00:02]} O-O {[%emt 0:00:04]} 5. Bd2 {[%emt 0:00:03]} b6 {[%emt 0:00:08]} 6. Nf3 {[%emt 0:00:03]} Bb7 {[%emt 0:00:01]} 7. Bd3 {[%emt 0:00:05]} d6 {[%emt 0:00:33]} 8. a3 {[%emt 0:01:40]} Bxc3 {[%emt 0:00:04]} 9. Bxc3 {[%emt 0:00:00]} Ne4 {[%emt 0:00:53]} 10. Rc1 {[%emt 0:00:29]} Nd7 {[%emt 0:00:05]} 11. b4 {[%emt 0:00:17]} Qe7 {[%emt 0:00:59]} 12. Bb2 {[%emt 0:00:21]} f5 {[%emt 0:00:03]} 13. Qc2 {[%emt 0:01:26]} c5 {[%emt 0:00:37]} 14. O-O {[%emt 0:00:15]} Ng5 {[%emt 0:00:51]} 15. Nxg5 {[%emt 0:00:19]} Qxg5 {[%emt 0:00:03]} 16. f4 {[%emt 0:00:00]} Qg6 {[%emt 0:00:01]} 17. d5 {[%emt 0:02:53]} exd5 {[%emt 0:00:48]} 18. Rf3 {[%emt 0:00:03]} Qe6 {[%emt 0:02:19]} 19. Rg3 {[%emt 0:01:56]} g6 {[%emt 0:00:54]} 20. bxc5 {[%emt 0:02:27]} dxc5 {[%emt 0:02:19]} 21. h4 {[%emt 0:00:33]} Kf7 {[%emt 0:00:30]} 22. cxd5 {[%emt 0:00:44]} Bxd5 {[%emt 0:00:04]} 23. e4 {[%emt 0:00:41]} fxe4 {[%emt 0:01:52]} 24. f5 {[%emt 0:00:03]} gxf5 {[%emt 0:00:40]} 25. Rg7+ {[%emt 0:00:02]} Ke8 {[%emt 0:00:02]} 26. Bb5 {[%emt 0:00:01]} Rf7 {[%emt 0:00:01]} 27. Rg8+ {[%emt 0:00:05]} Ke7 {[%emt 0:01:07]} 28. Rxa8 {[%emt 0:00:25]} Bxa8 {[%emt 0:00:02]} 29. Rd1 {[%emt 0:00:21]} Bd5 {[%emt 0:01:39]} 30. Qd2 {[%emt 0:00:18]} Bc6 {[%emt 0:00:19]} 31. Bc4 {[%emt 0:00:57]} Qxc4 {[%emt 0:00:03]} 32. Qd6+ {[%emt 0:00:02]} Ke8 {[%emt 0:00:01]} 33. Qxc6 {[%emt 0:00:01]} Re7 {[%emt 0:00:28]} 34. Rd5 {[%emt 0:00:10]} e3 {[%emt 0:00:05]} 35. Qc8+ {[%emt 0:00:42]} Kf7 {[%emt 0:00:02]} 36. Rxf5+ {[%emt 0:00:01]} Ke6 {[%emt 0:00:01]} 37. Rf6+ {[%emt 0:00:08]} Kd5 {[%emt 0:00:06]} 38. Qc6# {[%emt 0:00:06]} 1-0

[Event "European Online Club-ch-C 2021"]
[Site "Online"]
[Date "2021.03.27"]
[Round "8.19"]
[White "Gukesh D"]
[Black "Wachinger, Nikolas"]
[Result "1-0"]
[ECO "B84"]
[WhiteElo "2563"]
[BlackElo "2369"]
[Annotator "ChessBase"]
[PlyCount "71"]
[EventDate "2021.03.27"]
[EventType "team-tourn"]
[EventCountry "NET"]
[SourceTitle "playchess.com"]
[Source "ChessBase"]
[SourceQuality "1"]
[TimeControl "900+5"]

1. e4 {[%emt 0:00:00]} c5 {[%emt 0:00:04]} 2. Nf3 {[%emt 0:00:03]} d6 {[%emt 0:00:03]} 3. d4 {[%emt 0:00:01]} cxd4 {[%emt 0:00:04]} 4. Nxd4 {[%emt 0:00:01]} Nf6 {[%emt 0:00:02]} 5. Nc3 {[%emt 0:00:02]} a6 {[%emt 0:00:02]} 6. Be3 {[%emt 0:00:02]} e6 {[%emt 0:00:12]} 7. Be2 {[%emt 0:00:16]} Qc7 {[%emt 0:00:19]} 8. a4 {[%emt 0:00:05]} b6 {[%emt 0:00:39]} 9. g4 {[%emt 0:00:28]} Bb7 {[%emt 0:00:04]} 10. f3 {[%emt 0:00:02]} Be7 {[%emt 0:00:24]} 11. g5 {[%emt 0:00:06]} Nfd7 {[%emt 0:00:04]} 12. Qd2 {[%emt 0:00:10]} Ne5 {[%emt 0:00:10]} 13. Nb3 {[%emt 0:00:38]} Nbd7 {[%emt 0:00:13]} 14. Qd4 {[%emt 0:00:12]} O-O {[%emt 0:00:23]} 15. f4 {[%emt 0:00:07]} Nc6 {[%emt 0:00:13]} 16. Qd2 {[%emt 0:00:05]} Rfc8 {[%emt 0:03:40]} 17. O-O {[%emt 0:01:17]} Na5 {[%emt 0:00:12]} 18. Nxa5 {[%emt 0:01:10]} bxa5 {[%emt 0:00:00]} 19. f5 {[%emt 0:00:01]} Ne5 {[%emt 0:00:40]} 20. f6 {[%emt 0:00:03]} Bf8 {[%emt 0:00:14]} 21. Bd4 {[%emt 0:00:38]} gxf6 {[%emt 0:02:15]} 22. gxf6 {[%emt 0:00:28]} Ng6 {[%emt 0:00:05]} 23. Qg5 {[%emt 0:00:23]} d5 {[%emt 0:02:07]} 24. exd5 {[%emt 0:00:49]} Bd6 {[%emt 0:00:05]} 25. Rf2 {[%emt 0:02:09]} Bf4 {[%emt 0:00:24]} 26. Qh5 {[%emt 0:00:03]} Qd6 {[%emt 0:01:34]} 27. Raf1 {[%emt 0:00:25]} e5 {[%emt 0:01:22]} 28. Rxf4 {[%emt 0:00:04]} Nxf4 {[%emt 0:00:23]} 29. Rxf4 {[%emt 0:00:07]} exf4 {[%emt 0:00:07]} 30. Qg5+ {[%emt 0:00:23]} Kf8 {[%emt 0:00:02]} 31. Bg4 {[%emt 0:00:44]} Rxc3 {[%emt 0:00:15]} 32. bxc3 {[%emt 0:00:32]} Ke8 {[%emt 0:00:12]} 33. Qg8+ {[%emt 0:00:45]} Qf8 {[%emt 0:00:04]} 34. d6 {[%emt 0:00:08]} Bc6 {[%emt 0:00:51]} 35. Qg5 {[%emt 0:00:16]} Qxd6 {[%emt 0:00:08]} 36. Bc5 {[%emt 0:00:03]} 1-0

[Event "European Online Club-ch-C 2021"]
[Site "Online"]
[Date "2021.03.27"]
[Round "8.20"]
[White "Colbow, Collin"]
[Black "Alvarez Fernandez, Enrique"]
[Result "1/2-1/2"]
[ECO "B92"]
[WhiteElo "2339"]
[BlackElo "2349"]
[Annotator "NA"]
[PlyCount "112"]
[EventDate "2021.03.27"]
[EventType "team-tourn"]
[EventCountry "NET"]
[SourceTitle "playchess.com"]
[Source "ChessBase"]
[SourceQuality "1"]
[TimeControl "900+5"]

1. e4 {[%emt 0:00:00]} c5 {[%emt 0:00:07]} 2. Nf3 {[%emt 0:00:02]} d6 {[%emt 0:00:03]} 3. d4 {[%emt 0:00:02]} cxd4 {[%emt 0:00:01]} 4. Nxd4 {[%emt 0:00:00]} Nf6 {[%emt 0:00:02]} 5. Nc3 {[%emt 0:00:01]} a6 {[%emt 0:00:02]} 6. Be2 {[%emt 0:00:02]} e5 {[%emt 0:00:02]} 7. Nb3 {[%emt 0:00:01]} Be7 {[%emt 0:00:01]} 8. Be3 {[%emt 0:00:02]} Be6 {[%emt 0:00:27]} 9. O-O {[%emt 0:00:06]} O-O {[%emt 0:00:10]} 10. Qd3 {[%emt 0:00:03]} Nbd7 {[%emt 0:00:32]} 11. Nd5 {[%emt 0:00:03]} Bxd5 {[%emt 0:00:12]} 12. exd5 {[%emt 0:00:00]} Rc8 {[%emt 0:00:15]} 13. c4 {[%emt 0:00:16]} Ne8 {[%emt 0:00:33]} 14. a4 {[%emt 0:00:22]} a5 {[%emt 0:01:11]} 15. Nd2 {[%emt 0:00:40]} f5 {[%emt 0:01:01]} 16. f3 {[%emt 0:00:19]} Bg5 {[%emt 0:02:46]} 17. Bf2 {[%emt 0:00:50]} b6 {[%emt 0:00:19]} 18. Nb1 {[%emt 0:00:26]} Nc7 {[%emt 0:00:34]} 19. Nc3 {[%emt 0:00:05]} Na6 {[%emt 0:00:08]} 20. Nb5 {[%emt 0:00:44]} Ndc5 {[%emt 0:01:23]} 21. Qd1 {[%emt 0:00:43]} Qd7 {[%emt 0:00:09]} 22. Ra3 {[%emt 0:01:02]} g6 {[%emt 0:00:14]} 23. Bd3 {[%emt 0:01:08]} Nc7 {[%emt 0:02:22]} 24. Na7 {[%emt 0:04:10]} Ra8 {[%emt 0:00:18]} 25. Nc6 {[%emt 0:00:06]} N7a6 {[%emt 0:00:16]} 26. Bc2 {[%emt 0:01:01]} Nb8 {[%emt 0:00:37]} 27. b4 {[%emt 0:00:27]} axb4 {[%emt 0:00:17]} 28. Nxb4 {[%emt 0:00:00]} Nba6 {[%emt 0:00:10]} 29. Nc6 {[%emt 0:00:17]} Nb8 {[%emt 0:00:04]} 30. Nb4 {[%emt 0:01:05]} Nba6 {[%emt 0:00:18]} 31. Qb1 {[%emt 0:00:04]} Nxb4 {[%emt 0:00:21]} 32. Qxb4 {[%emt 0:00:00]} Qc7 {[%emt 0:00:35]} 33. Rfa1 {[%emt 0:00:54]} Ra5 {[%emt 0:00:25]} 34. Be1 {[%emt 0:00:16]} Rfa8 {[%emt 0:00:16]} 35. Qb1 {[%emt 0:00:20]} R5a6 {[%emt 0:00:06]} 36. h4 {[%emt 0:00:47]} Bf6 {[%emt 0:00:15]} 37. R1a2 {[%emt 0:00:48]} Qe7 {[%emt 0:00:11]} 38. h5 {[%emt 0:00:11]} Bh4 {[%emt 0:00:25]} 39. g3 {[%emt 0:00:13]} Bg5 {[%emt 0:00:16]} 40. a5 {[%emt 0:00:22]} bxa5 {[%emt 0:00:22]} 41. Rxa5 {[%emt 0:00:00]} Rxa5 {[%emt 0:00:06]} 42. Rxa5 {[%emt 0:00:00]} Rxa5 {[%emt 0:00:04]} 43. Bxa5 {[%emt 0:00:00]} Qb7 {[%emt 0:00:20]} 44. Qb5 {[%emt 0:00:16]} Qa7 {[%emt 0:00:15]} 45. hxg6 {[%emt 0:00:22]} hxg6 {[%emt 0:00:03]} 46. Qb6 {[%emt 0:00:07]} Qxb6 {[%emt 0:00:04]} 47. Bxb6 {[%emt 0:00:00]} Nd7 {[%emt 0:00:04]} 48. Bc7 {[%emt 0:00:07]} Be3+ {[%emt 0:00:03]} 49. Kg2 {[%emt 0:00:06]} Bc5 {[%emt 0:00:02]} 50. g4 {[%emt 0:00:07]} fxg4 {[%emt 0:00:09]} 51. Bxg6 {[%emt 0:00:04]} gxf3+ {[%emt 0:00:03]} 52. Kxf3 {[%emt 0:00:00]} Nf6 {[%emt 0:00:03]} 53. Bd8 {[%emt 0:00:09]} Kg7 {[%emt 0:00:05]} 54. Bf5 {[%emt 0:00:04]} Kf7 {[%emt 0:00:07]} 55. Bxf6 {[%emt 0:00:04]} Kxf6 {[%emt 0:00:03]} 56. Ke4 {[%emt 0:00:02]} Bb6 {[%emt 0:00:03]} 1/2-1/2

[Event "European Online Club-ch-C 2021"]
[Site "Online"]
[Date "2021.03.27"]
[Round "9.1"]
[White "Reuker, Jari"]
[Black "Sahin, Ozgun"]
[Result "1/2-1/2"]
[ECO "B36"]
[WhiteElo "2423"]
[BlackElo "2281"]
[Annotator "NA"]
[PlyCount "166"]
[EventDate "2021.03.27"]
[EventType "team-tourn"]
[EventCountry "NET"]
[SourceTitle "playchess.com"]
[Source "ChessBase"]
[SourceQuality "1"]
[TimeControl "900+5"]

1. e4 {[%emt 0:00:00]} c5 {[%emt 0:00:03]} 2. Nf3 {[%emt 0:00:03]} Nc6 {[%emt 0:00:02]} 3. d4 {[%emt 0:00:02]} cxd4 {[%emt 0:00:01]} 4. Nxd4 {[%emt 0:00:00]} g6 {[%emt 0:00:02]} 5. c4 {[%emt 0:00:03]} Nf6 {[%emt 0:00:03]} 6. Nc3 {[%emt 0:00:02]} Nxd4 {[%emt 0:00:03]} 7. Qxd4 {[%emt 0:00:03]} d6 {[%emt 0:00:01]} 8. Be2 {[%emt 0:00:05]} Bg7 {[%emt 0:00:02]} 9. Be3 {[%emt 0:00:03]} O-O {[%emt 0:00:02]} 10. Qd2 {[%emt 0:00:03]} Qa5 {[%emt 0:00:04]} 11. O-O {[%emt 0:00:07]} Be6 {[%emt 0:00:02]} 12. Rfc1 {[%emt 0:00:15]} Rfc8 {[%emt 0:00:04]} 13. b3 {[%emt 0:00:03]} a6 {[%emt 0:00:18]} 14. Rab1 {[%emt 0:00:05]} Qb4 {[%emt 0:01:18]} 15. a3 {[%emt 0:03:22]} Qxa3 {[%emt 0:00:05]} 16. Ra1 {[%emt 0:00:39]} Qb4 {[%emt 0:00:19]} 17. Ra4 {[%emt 0:00:38]} Qxb3 {[%emt 0:00:05]} 18. Bd1 {[%emt 0:00:34]} Nxe4 {[%emt 0:00:05]} 19. Nxe4 {[%emt 0:01:10]} Qb2 {[%emt 0:00:08]} 20. Qxb2 {[%emt 0:01:02]} Bxb2 {[%emt 0:00:04]} 21. Rb1 {[%emt 0:00:01]} Bd7 {[%emt 0:00:48]} 22. Ra2 {[%emt 0:04:29]} Be5 {[%emt 0:00:14]} 23. Nd2 {[%emt 0:00:18]} Bc6 {[%emt 0:00:28]} 24. Be2 {[%emt 0:00:29]} f5 {[%emt 0:00:21]} 25. f4 {[%emt 0:00:10]} Bf6 {[%emt 0:00:28]} 26. Nb3 {[%emt 0:00:14]} Be4 {[%emt 0:00:24]} 27. Rc1 {[%emt 0:00:08]} e5 {[%emt 0:02:02]} 28. Kf2 {[%emt 0:00:21]} Kg7 {[%emt 0:01:47]} 29. Rd2 {[%emt 0:01:13]} Be7 {[%emt 0:01:13]} 30. c5 {[%emt 0:00:56]} exf4 {[%emt 0:00:12]} 31. Bxf4 {[%emt 0:00:19]} dxc5 {[%emt 0:00:04]} 32. Rd7 {[%emt 0:00:07]} Kf6 {[%emt 0:00:03]} 33. Na5 {[%emt 0:00:10]} Rd8 {[%emt 0:00:40]} 34. Rc7 {[%emt 0:00:25]} Rac8 {[%emt 0:00:08]} 35. Nxb7 {[%emt 0:00:05]} Rxc7 {[%emt 0:00:05]} 36. Bxc7 {[%emt 0:00:03]} Bxb7 {[%emt 0:00:03]} 37. Bxd8 {[%emt 0:00:02]} Bxd8 {[%emt 0:00:01]} 38. Rb1 {[%emt 0:00:05]} Be4 {[%emt 0:00:08]} 39. Rb8 {[%emt 0:00:07]} Bc7 {[%emt 0:00:11]} 40. Rc8 {[%emt 0:00:11]} Bxh2 {[%emt 0:00:18]} 41. Rxc5 {[%emt 0:00:04]} Be5 {[%emt 0:00:06]} 42. Ra5 {[%emt 0:00:04]} Bd4+ {[%emt 0:00:13]} 43. Kf1 {[%emt 0:00:04]} h5 {[%emt 0:00:24]} 44. Rxa6+ {[%emt 0:00:06]} Kg5 {[%emt 0:00:02]} 45. g3 {[%emt 0:00:03]} Be3 {[%emt 0:00:34]} 46. Ra3 {[%emt 0:00:04]} Bc1 {[%emt 0:00:06]} 47. Ra1 {[%emt 0:00:03]} Bb2 {[%emt 0:00:03]} 48. Ra2 {[%emt 0:00:05]} Be5 {[%emt 0:00:05]} 49. Kf2 {[%emt 0:00:06]} h4 {[%emt 0:00:03]} 50. gxh4+ {[%emt 0:00:01]} Kxh4 {[%emt 0:00:02]} 51. Bf3 {[%emt 0:00:13]} Bxf3 {[%emt 0:00:10]} 52. Kxf3 {[%emt 0:00:00]} Kg5 {[%emt 0:00:22]} 53. Ra5 {[%emt 0:00:02]} Bc3 {[%emt 0:00:04]} 54. Ra3 {[%emt 0:00:03]} Bg7 {[%emt 0:00:10]} 55. Ra7 {[%emt 0:00:03]} Kh6 {[%emt 0:00:03]} 56. Ra6 {[%emt 0:00:04]} Kh5 {[%emt 0:00:03]} 57. Ra5 {[%emt 0:00:13]} Bc3 {[%emt 0:00:11]} 58. Rc5 {[%emt 0:00:04]} Bf6 {[%emt 0:00:05]} 59. Rc6 {[%emt 0:00:05]} Bd4 {[%emt 0:00:10]} 60. Rd6 {[%emt 0:00:03]} Bc5 {[%emt 0:00:08]} 61. Rd5 {[%emt 0:00:02]} Be7 {[%emt 0:00:02]} 62. Re5 {[%emt 0:00:02]} Bf6 {[%emt 0:00:03]} 63. Rb5 {[%emt 0:00:04]} Kg5 {[%emt 0:00:05]} 64. Ra5 {[%emt 0:00:03]} Bd4 {[%emt 0:00:06]} 65. Ra4 {[%emt 0:00:03]} Bc3 {[%emt 0:00:03]} 66. Ra3 {[%emt 0:00:03]} Be5 {[%emt 0:00:09]} 67. Ra5 {[%emt 0:00:03]} Bh2 {[%emt 0:00:05]} 68. Ra2 {[%emt 0:00:03]} Bd6 {[%emt 0:00:19]} 69. Ra6 {[%emt 0:00:02]} Bb4 {[%emt 0:00:19]} 70. Ra4 {[%emt 0:00:03]} Be1 {[%emt 0:00:02]} 71. Ra1 {[%emt 0:00:03]} Bh4 {[%emt 0:00:02]} 72. Rh1 {[%emt 0:00:27]} f4 {[%emt 0:00:27]} 73. Rg1+ {[%emt 0:00:19]} Bg3 {[%emt 0:00:03]} 74. Rxg3+ {[%emt 0:00:02]} fxg3 {[%emt 0:00:03]} 75. Kxg3 {[%emt 0:00:00]} Kf5 {[%emt 0:00:02]} 76. Kf3 {[%emt 0:00:02]} g5 {[%emt 0:00:01]} 77. Kg3 {[%emt 0:00:03]} g4 {[%emt 0:00:02]} 78. Kg2 {[%emt 0:00:02]} Kf4 {[%emt 0:00:01]} 79. Kf2 {[%emt 0:00:01]} g3+ {[%emt 0:00:01]} 80. Kg2 {[%emt 0:00:02]} Kg4 {[%emt 0:00:02]} 81. Kg1 {[%emt 0:00:02]} Kh3 {[%emt 0:00:03]} 82. Kh1 {[%emt 0:00:03]} g2+ {[%emt 0:00:01]} 83. Kg1 {[%emt 0:00:02]} Kg3 {[%emt 0:00:02]} 1/2-1/2

[Event "European Online Club-ch-C 2021"]
[Site "Online"]
[Date "2021.03.27"]
[Round "9.2"]
[White "Gallevci, Yagiz"]
[Black "Wachinger, Nikolas"]
[Result "1-0"]
[ECO "B23"]
[WhiteElo "2069"]
[BlackElo "2369"]
[Annotator "NA"]
[PlyCount "63"]
[EventDate "2021.03.27"]
[EventType "team-tourn"]
[EventCountry "NET"]
[SourceTitle "playchess.com"]
[Source "ChessBase"]
[SourceQuality "1"]
[TimeControl "900+5"]

1. e4 {[%emt 0:00:00]} c5 {[%emt 0:00:08]} 2. Nc3 {[%emt 0:00:03]} d6 {[%emt 0:00:03]} 3. d4 {[%emt 0:00:02]} cxd4 {[%emt 0:00:11]} 4. Qxd4 {[%emt 0:00:00]} Nc6 {[%emt 0:00:04]} 5. Qd2 {[%emt 0:00:01]} g6 {[%emt 0:00:08]} 6. b3 {[%emt 0:00:02]} Bh6 {[%emt 0:00:15]} 7. f4 {[%emt 0:00:03]} f5 {[%emt 0:00:03]} 8. Bb2 {[%emt 0:00:19]} Nf6 {[%emt 0:00:07]} 9. g3 {[%emt 0:04:37]} fxe4 {[%emt 0:01:31]} 10. O-O-O {[%emt 0:00:46]} Qa5 {[%emt 0:01:18]} 11. Bg2 {[%emt 0:02:11]} Bf5 {[%emt 0:03:17]} 12. Nd5 {[%emt 0:02:41]} Qxd2+ {[%emt 0:03:20]} 13. Rxd2 {[%emt 0:00:00]} Kf7 {[%emt 0:01:07]} 14. Nxf6 {[%emt 0:00:20]} exf6 {[%emt 0:00:02]} 15. Rxd6 {[%emt 0:00:02]} Bg7 {[%emt 0:00:04]} 16. Ne2 {[%emt 0:00:27]} Rhd8 {[%emt 0:00:23]} 17. Rxd8 {[%emt 0:02:06]} Rxd8 {[%emt 0:00:00]} 18. Nc3 {[%emt 0:00:01]} e3 {[%emt 0:02:06]} 19. Re1 {[%emt 0:00:03]} Nb4 {[%emt 0:00:49]} 20. Re2 {[%emt 0:01:56]} Bxc2 {[%emt 0:00:22]} 21. a3 {[%emt 0:00:42]} Bd3 {[%emt 0:00:55]} 22. Rxe3 {[%emt 0:00:01]} Nc6 {[%emt 0:00:24]} 23. Bd5+ {[%emt 0:00:07]} Rxd5 {[%emt 0:00:03]} 24. Nxd5 {[%emt 0:00:00]} Bf5 {[%emt 0:00:04]} 25. b4 {[%emt 0:00:10]} Be6 {[%emt 0:00:06]} 26. Nc7 {[%emt 0:00:06]} Bd7 {[%emt 0:00:10]} 27. Rd3 {[%emt 0:00:11]} Bc8 {[%emt 0:00:08]} 28. b5 {[%emt 0:00:04]} Ne7 {[%emt 0:00:05]} 29. Rd8 {[%emt 0:00:09]} b6 {[%emt 0:00:05]} 30. Ne8 {[%emt 0:00:06]} Bh8 {[%emt 0:00:05]} 31. Nd6+ {[%emt 0:00:01]} Ke6 {[%emt 0:00:03]} 32. Nxc8 {[%emt 0:00:01]} 1-0